bitfinex/quotes_SOLUSD_20240818
["timestamp","ask_amount","ask_price","bid_price","bid_amount"]
[1723998789536,7.51269669,146.42,146.36,8.8]
[1723998789712,15.7991,146.43,146.36,8.8]
[1723998790042,9.22066788,146.42,146.35,20.0]
[1723998790248,7.51273738,146.41,146.35,20.0]
[1723998790419,1.7079305,146.42,146.35,20.0]
[1723998790622,27.55289731,146.43,146.29,6.431]
[1723998790623,6.0744,146.39,146.29,6.431]
[1723998790847,1.70826839,146.38,146.31,8.8]
[1723998791050,6.0744,146.39,146.32,20.0]
[1723998791349,7.51448718,146.38,146.32,20.0]
[1723998791536,1.70832323,146.37,146.32,20.0]
[1723998791851,1.70832323,146.37,146.3,8.8]
[1723998791852,1.70832323,146.37,146.31,20.0]
[1723998792542,1.70829394,146.38,146.31,20.0]
[1723998792730,7.51536879,146.37,146.31,20.0]
[1723998793054,1.70829378,146.36,146.31,20.0]
[1723998793252,1.70829378,146.36,146.3,20.0]
[1723998793742,15.7991,146.36,146.26,13.01828272]
[1723998793945,1.7085427,146.35,146.28,8.8]
[1723998795152,7.51663892,146.34,146.28,8.8]
[1723998795320,1.7085427,146.35,146.29,20.0]
[1723998795527,15.7991,146.36,146.29,20.0]
[1723998795843,7.51655173,146.35,146.3,8.8]
[1723998796023,15.7991,146.36,146.31,20.0]
[1723998796222,7.5161612,146.35,146.31,20.0]
[1723998796424,15.7991,146.36,146.31,20.0]
[1723998796832,7.5161612,146.35,146.31,20.0]
[1723998797035,15.7991,146.36,146.31,20.0]
[1723998800448,1.70846132,146.35,146.31,20.0]
[1723998800665,15.7991,146.36,146.31,20.0]
[1723998802862,15.7991,146.36,146.32,8.8]
[1723998803247,15.199,146.4,146.34,8.8]
[1723998803443,15.199,146.4,146.36,8.8]
[1723998804965,15.199,146.4,146.34,8.8]
[1723998805680,1.70793548,146.39,146.33,20.0]
[1723998807165,15.199,146.4,146.34,8.8]
[1723998807474,7.51425489,146.39,146.34,8.8]
[1723998807768,15.199,146.4,146.34,8.8]
[1723998808153,15.199,146.4,146.33,20.0]
[1723998808468,7.51420874,146.39,146.33,8.8]
[1723998808667,16.90710449,146.4,146.34,20.0]
[1723998808854,7.51439915,146.39,146.34,20.0]
[1723998809050,15.199,146.4,146.34,20.0]
[1723998809971,7.51421065,146.39,146.34,20.0]
[1723998810270,15.199,146.4,146.34,20.0]
[1723998810570,7.51420636,146.39,146.34,20.0]
[1723998810749,15.199,146.4,146.34,20.0]
[1723998810946,7.51420874,146.39,146.34,20.0]
[1723998811166,15.199,146.4,146.34,20.0]
[1723998811368,7.51420636,146.39,146.34,20.0]
[1723998811580,15.199,146.4,146.34,20.0]
[1723998811881,7.51420636,146.39,146.34,20.0]
[1723998812077,1.70810043,146.39,146.34,20.0]
[1723998812244,15.199,146.4,146.34,20.0]
[1723998812452,9.22230901,146.39,146.34,20.0]
[1723998812666,1.70810027,146.39,146.34,20.0]
[1723998813746,7.51459399,146.38,146.34,20.0]
[1723998814076,7.51504853,146.37,146.3,8.8]
[1723998814285,1.70844853,146.36,146.3,8.8]
[1723998815352,1.7084363,146.37,146.31,20.0]
[1723998815589,11.75483908,146.38,146.31,20.0]
[1723998815590,7.5156648,146.36,146.31,20.0]
[1723998815794,11.75483908,146.38,146.31,20.0]
[1723998816084,7.51566718,146.37,146.31,20.0]
[1723998816284,7.51566718,146.36,146.32,10.1667328]
[1723998816495,26.95383908,146.4,146.32,8.8]
[1723998816676,7.51434491,146.39,146.34,8.8]
[1723998816875,7.51434491,146.38,146.34,8.8]
[1723998817089,15.199,146.4,146.34,8.8]
[1723998817392,7.51427719,146.39,146.34,8.8]
[1723998817603,7.51427719,146.38,146.34,8.8]
[1723998817759,7.51478444,146.37,146.33,20.0]
[1723998818090,11.75464473,146.38,146.31,8.8]
[1723998818267,7.51508843,146.37,146.32,20.0]
[1723998818586,11.75464473,146.38,146.32,20.0]
[1723998818885,7.51513697,146.37,146.32,20.0]
[1723998819074,11.75464473,146.39,146.32,21.36664885]
[1723998819275,19.26970159,146.38,146.32,21.36664885]
[1723998819479,7.51505686,146.37,146.32,21.36664885]
[1723998819794,11.75464473,146.38,146.32,20.0]
[1723998820094,7.51501823,146.37,146.32,20.0]
[1723998820296,11.75464473,146.38,146.32,20.0]
[1723998820591,7.51510748,146.37,146.32,20.0]
[1723998820790,11.75464473,146.38,146.32,20.0]
[1723998820965,15.199,146.4,146.32,20.0]
[1723998821165,64.27092882,146.39,146.32,20.0]
[1723998821380,19.27092882,146.38,146.32,20.0]
[1723998821586,7.51505889,146.37,146.32,20.0]
[1723998821765,11.75586993,146.38,146.32,20.0]
[1723998821966,7.51510947,146.37,146.32,20.0]
[1723998822202,11.75586993,146.38,146.32,20.0]
[1723998822370,7.51510914,146.37,146.32,20.0]
[1723998822571,11.75586993,146.38,146.32,20.0]
[1723998822796,7.51510677,146.37,146.32,20.0]
[1723998822993,11.75586993,146.38,146.32,20.0]
[1723998823198,7.51510677,146.37,146.32,20.0]
[1723998823381,11.75586993,146.38,146.32,19.5]
[1723998823582,7.51511211,146.37,146.32,19.5]
[1723998823790,11.75586993,146.38,146.32,19.5]
[1723998824101,7.51514995,146.37,146.32,19.5]
[1723998824308,7.51514995,146.36,146.32,19.5]
[1723998824470,11.75586993,146.38,146.32,19.5]
[1723998824668,7.5151904,146.37,146.32,19.5]
[1723998824882,7.5151904,146.36,146.32,19.5]
[1723998825087,11.75586993,146.38,146.32,19.5]
[1723998825286,7.51513625,146.37,146.32,19.5]
[1723998825573,9.22349324,146.36,146.32,19.5]
[1723998825795,1.70831363,146.36,146.32,19.5]
[1723998826703,1.70840679,146.37,146.32,19.5]
[1723998827001,7.51531048,146.36,146.32,19.5]
[1723998827180,1.70840679,146.37,146.32,19.5]
[1723998827378,7.51531015,146.36,146.32,19.5]
[1723998827678,13.46467475,146.37,146.32,19.5]
[1723998827886,7.51531285,146.36,146.32,19.5]
[1723998828082,1.70840679,146.37,146.32,19.5]
[1723998828394,7.51531285,146.36,146.32,19.5]
[1723998828597,1.70840679,146.37,146.32,19.5]
[1723998828893,7.51531015,146.36,146.32,19.5]
[1723998829105,1.70840679,146.37,146.32,19.5]
[1723998829304,7.51522817,146.36,146.32,19.5]
[1723998829507,1.70840679,146.37,146.32,19.5]
[1723998829677,11.75625787,146.38,146.32,19.5]
[1723998829678,7.51526509,146.36,146.32,19.5]
[1723998829870,11.75625787,146.38,146.32,19.5]
[1723998830075,7.5152677,146.37,146.32,19.5]
[1723998830398,7.5152677,146.36,146.33,8.8]
[1723998830599,11.75625787,146.38,146.33,8.8]
[1723998830803,7.51525993,146.37,146.32,28.3]
[1723998831002,7.51525993,146.36,146.32,28.3]
[1723998831204,11.75625787,146.39,146.32,28.3]
[1723998831507,19.2715178,146.38,146.32,28.3]
[1723998831682,7.51525993,146.37,146.32,28.3]
[1723998831885,7.51525993,146.36,146.32,28.3]
[1723998832107,11.75618977,146.38,146.32,28.3]
[1723998832418,19.27145188,146.37,146.32,28.3]
[1723998832576,7.51526263,146.36,146.32,28.3]
[1723998832782,11.75618925,146.38,146.32,28.3]
[1723998833094,19.27150485,146.37,146.32,28.3]
[1723998833285,7.5153156,146.36,146.32,28.3]
[1723998833487,11.75618925,146.37,146.32,28.3]
[1723998833685,7.51531323,146.36,146.32,28.3]
[1723998833880,11.75618925,146.37,146.32,28.3]
[1723998834079,7.51527166,146.36,146.32,28.3]
[1723998834345,11.75618925,146.39,146.34,8.8]
[1723998834615,15.199,146.4,146.35,1.36638336]
[1723998834780,7.51369866,146.39,146.34,8.8]
[1723998834982,26.95518925,146.4,146.35,1.36640372]
[1723998835211,7.51369695,146.39,146.34,8.8]
[1723998835388,15.199,146.4,146.34,8.8]
[1723998835583,7.51373931,146.39,146.34,8.8]
[1723998835913,15.199,146.4,146.34,8.8]
[1723998836116,7.51373792,146.39,146.34,8.8]
[1723998836294,26.95518925,146.4,146.34,8.8]
[1723998836493,7.51373996,146.39,146.34,8.8]
[1723998836684,1.70797486,146.39,146.34,8.8]
[1723998837107,1.70797486,146.39,146.32,34.5695]
[1723998837787,19.26992502,146.38,146.32,19.5]
[1723998837988,7.51464007,146.37,146.31,20.0]
[1723998838196,7.51464007,146.36,146.31,20.0]
[1723998838401,45.0,146.39,146.31,20.0]
[1723998838604,19.27073533,146.38,146.31,20.0]
[1723998838803,19.27073533,146.37,146.31,20.0]
[1723998839005,7.51498353,146.36,146.31,20.0]
[1723998839234,11.7557518,146.37,146.31,20.0]
[1723998839393,7.51527899,146.36,146.31,20.0]
[1723998839597,11.7557518,146.37,146.31,20.0]
[1723998839907,7.51527899,146.36,146.31,20.0]
[1723998840227,11.7557518,146.37,146.31,20.0]
[1723998840402,7.51522019,146.36,146.31,20.0]
[1723998840602,11.7557518,146.37,146.31,20.0]
[1723998840804,7.51522289,146.36,146.31,20.0]
[1723998841119,11.7557518,146.37,146.31,20.0]
[1723998841309,7.51523044,146.36,146.31,20.0]
[1723998841508,11.7557518,146.37,146.31,20.0]
[1723998841706,45.0,146.39,146.31,20.0]
[1723998841931,19.27137008,146.38,146.31,20.0]
[1723998842132,20.97970007,146.37,146.31,20.0]
[1723998842434,7.51523077,146.36,146.31,20.0]
[1723998842604,11.75613879,146.38,146.31,20.0]
[1723998842801,19.27131896,146.37,146.31,20.0]
[1723998843020,7.51518017,146.36,146.31,20.0]
[1723998843331,11.7560632,146.38,146.31,20.0]
[1723998843501,19.27124304,146.37,146.31,20.0]
[1723998843828,7.51517984,146.36,146.31,20.0]
[1723998844035,11.75607506,146.38,146.32,8.8]
[1723998844203,19.27122556,146.37,146.33,20.0]
[1723998844535,7.5151505,146.36,146.33,20.0]
[1723998844823,11.7560071,146.39,146.33,20.0]
[1723998845031,19.27114541,146.38,146.33,20.0]
[1723998845204,19.27114541,146.37,146.33,20.0]
[1723998845407,7.51513831,146.36,146.33,20.0]
[1723998845609,11.75607897,146.39,146.33,20.0]
[1723998845814,19.27127328,146.38,146.33,20.0]
[1723998846018,19.27127328,146.37,146.33,20.0]
[1723998846313,7.51519431,146.36,146.33,20.0]
[1723998846513,11.75600287,146.39,146.33,20.0]
[1723998846716,19.27114217,146.38,146.33,20.0]
[1723998847010,7.5151393,146.37,146.33,20.0]
[1723998847209,1.189,146.33,146.14,6.095]
[1723998847429,50.98002042,146.32,146.17,6.095]
[1723998847609,19.27053788,146.31,146.22,8.8]
[1723998847806,64.27053788,146.3,146.22,8.8]
[1723998848003,19.27053788,146.29,146.22,8.8]
[1723998848198,7.5151393,146.28,146.22,8.8]
[1723998848412,7.5151393,146.28,146.17,6.095]
[1723998848413,6.8358,146.29,146.17,6.095]
[1723998848633,7.5195587,146.28,146.2,8.8]
[1723998848797,8.54524463,146.29,146.2,8.8]
[1723998849009,68.15576733,146.28,146.18,8.8]
[1723998849341,46.70963923,146.27,146.18,8.8]
[1723998849635,1.70963616,146.26,146.18,8.8]
[1723998850207,1.70963616,146.26,146.19,20.0]
[1723998851225,45.0,146.27,146.19,20.0]
[1723998852718,45.0,146.27,146.18,20.0]
[1723998853951,1.70979565,146.26,146.18,20.0]
[1723998857243,8.54689565,146.26,146.18,20.0]
[1723998857451,45.0,146.25,146.18,20.0]
[1723998857735,1.71002446,146.24,146.18,20.0]
[1723998857947,1.71003829,146.23,146.18,20.0]
[1723998858359,45.0,146.25,146.18,20.0]
[1723998858549,1.71000485,146.24,146.18,20.0]
[1723998858856,6.8385,146.24,146.16,20.0]
[1723998859054,46.71016196,146.23,146.16,20.0]
[1723998860559,45.0,146.23,146.16,20.0]
[1723998864759,6.8375,146.26,146.16,20.0]
[1723998864971,23.1451,146.27,146.17,23.40790041]
[1723998865261,23.1451,146.27,146.18,21.36789022]
[1723998865843,23.1451,146.27,146.18,20.0]
[1723998866465,45.0,146.26,146.18,20.0]
[1723998868662,16.3084,146.27,146.18,20.0]
[1723998870744,16.3084,146.27,146.18,42.04]
[1723998872468,16.3084,146.27,146.19,8.81]
[1723998872677,16.3084,146.27,146.2,20.0]
[1723998872854,18.01809131,146.27,146.17,15.4667]
[1723998873051,53.81,146.26,146.17,24.2767]
[1723998873375,53.81,146.26,146.18,20.0]
[1723998875763,45.0,146.26,146.19,8.81]
[1723998875970,45.0,146.26,146.2,20.0]
[1723998881277,15.6452,146.3,146.21,15.0341]
[1723998881574,8.81,146.3,146.21,15.0341]
[1723998881894,8.81,146.3,146.22,20.0]
[1723998882753,45.0,146.29,146.22,20.0]
[1723998885685,51.8359,146.29,146.22,20.0]
[1723998885869,46.70948097,146.29,146.22,20.0]
[1723998886280,45.0,146.29,146.22,20.0]
[1723998887049,45.0,146.29,146.22,28.81]
[1723998887258,45.0,146.3,146.23,15.4751]
[1723998888564,45.0,146.3,146.24,20.0]
[1723998893289,7.51961545,146.29,146.24,20.0]
[1723998893462,45.0,146.3,146.24,20.0]
[1723998893666,7.51961782,146.29,146.24,20.0]
[1723998893876,45.0,146.3,146.24,20.0]
[1723998894075,7.51961782,146.29,146.24,20.0]
[1723998894367,45.0,146.3,146.24,20.0]
[1723998894570,7.51962011,146.29,146.24,20.0]
[1723998894770,45.0,146.3,146.24,20.0]
[1723998894968,7.51962011,146.29,146.24,20.0]
[1723998895187,45.0,146.3,146.24,20.0]
[1723998895393,7.51961787,146.29,146.24,20.0]
[1723998895569,45.0,146.3,146.24,20.0]
[1723998895763,7.51957445,146.29,146.24,20.0]
[1723998896085,45.0,146.3,146.24,20.0]
[1723998896290,45.0,146.31,146.24,20.0]
[1723998897087,7.51913722,146.3,146.24,20.0]
[1723998897293,45.0,146.31,146.24,20.0]
[1723998897595,7.51917825,146.3,146.24,20.0]
[1723998897795,45.0,146.31,146.24,20.0]
[1723998898172,7.51922686,146.3,146.24,20.0]
[1723998898389,45.0,146.31,146.24,20.0]
[1723998898695,7.51922686,146.3,146.24,20.0]
[1723998898870,45.0,146.31,146.24,20.0]
[1723998899069,7.51922686,146.3,146.24,20.0]
[1723998899269,45.0,146.31,146.24,20.0]
[1723998899496,7.51922686,146.3,146.24,20.0]
[1723998899699,45.0,146.31,146.24,20.0]
[1723998899903,7.51922686,146.3,146.24,20.0]
[1723998900202,45.0,146.31,146.24,20.0]
[1723998900375,7.51922923,146.3,146.24,20.0]
[1723998900688,45.0,146.31,146.24,20.0]
[1723998900880,7.51922686,146.3,146.24,20.0]
[1723998901062,45.0,146.31,146.24,20.0]
[1723998901901,45.0,146.31,146.24,28.81]
[1723998907892,7.5192262,146.3,146.24,28.81]
[1723998908097,45.0,146.31,146.24,28.81]
[1723998908301,7.51922857,146.3,146.24,28.81]
[1723998908511,45.0,146.31,146.24,28.81]
[1723998908680,7.5192262,146.3,146.24,28.81]
[1723998908878,45.0,146.31,146.24,28.81]
[1723998909079,7.5192262,146.3,146.24,28.81]
[1723998909381,45.0,146.31,146.24,28.81]
[1723998909593,9.2284275,146.3,146.24,20.0]
[1723998909793,9.2284275,146.3,146.21,6.2241]
[1723998909794,8.81,146.28,146.21,6.2241]
[1723998910014,8.81,146.26,146.21,6.2241]
[1723998910179,1.70984141,146.25,146.21,6.2241]
[1723998910574,8.81,146.24,146.19,15.172]
[1723998911006,7.52209327,146.23,146.19,15.172]
[1723998911178,8.81,146.24,146.19,15.172]
[1723998911503,7.52248151,146.23,146.19,15.172]
[1723998911805,8.81,146.24,146.19,15.172]
[1723998912004,7.52199381,146.23,146.19,15.172]
[1723998912300,10.52006764,146.24,146.19,15.172]
[1723998912496,7.52199144,146.23,146.19,15.172]
[1723998912717,8.81,146.24,146.19,15.172]
[1723998912883,7.52198361,146.23,146.19,15.172]
[1723998913089,8.81,146.24,146.19,15.172]
[1723998913299,10.52006707,146.24,146.19,15.172]
[1723998913491,10.5200665,146.26,146.19,15.172]
[1723998913677,52.5202219,146.25,146.19,15.172]
[1723998913885,7.5202219,146.24,146.19,15.172]
[1723998915306,45.0,146.25,146.19,15.172]
[1723998915599,7.52079898,146.24,146.19,15.172]
[1723998915814,7.52079898,146.23,146.19,15.172]
[1723998915986,45.0,146.25,146.19,15.172]
[1723998916300,7.52062536,146.24,146.19,15.172]
[1723998916501,7.52062536,146.23,146.19,15.172]
[1723998916882,45.0,146.25,146.19,15.172]
[1723998917209,7.52073222,146.24,146.19,15.172]
[1723998917500,45.0,146.25,146.19,15.172]
[1723998917705,7.52203984,146.24,146.19,15.172]
[1723998917897,45.0,146.25,146.19,15.172]
[1723998918100,7.52203984,146.24,146.19,15.172]
[1723998918299,45.0,146.25,146.19,15.172]
[1723998918497,7.5223342,146.24,146.19,15.172]
[1723998918707,45.0,146.25,146.19,15.172]
[1723998918884,7.52202959,146.24,146.19,15.172]
[1723998919087,45.0,146.25,146.19,15.172]
[1723998930814,31.8337,146.29,146.2,8.81]
[1723998930991,7.52171846,146.28,146.2,8.81]
[1723998931195,7.52171846,146.27,146.2,8.81]
[1723998931399,7.52171846,146.26,146.2,8.81]
[1723998931595,31.8337,146.29,146.2,8.81]
[1723998931791,7.52167629,146.28,146.2,8.81]
[1723998932019,7.52167629,146.27,146.2,8.81]
[1723998932217,45.0,146.26,146.2,8.81]
[1723998933213,45.0,146.26,146.19,15.172]
[1723998934332,31.8337,146.29,146.19,15.172]
[1723998934505,52.52127244,146.28,146.19,15.172]
[1723998934836,7.52127244,146.27,146.19,15.172]
[1723998935391,1.70966006,146.26,146.19,15.172]
[1723998935627,53.81,146.28,146.19,15.172]
[1723998935804,9.23096869,146.27,146.19,15.172]
[1723998936124,1.70965973,146.26,146.19,15.172]
[1723998936620,10.51965973,146.26,146.19,15.172]
[1723998937805,45.0,146.25,146.19,15.172]
[1723998938009,1.70991996,146.24,146.19,15.172]
[1723998938207,1.70991996,146.23,146.19,15.172]
[1723998939726,45.0,146.25,146.19,15.172]
[1723998943420,1.70991753,146.24,146.19,15.172]
[1723998943620,1.70991753,146.23,146.19,15.172]
[1723998943838,45.0,146.25,146.19,15.172]
[1723998945223,1.70991757,146.24,146.19,15.172]
[1723998946238,45.0,146.25,146.19,15.172]
[1723998947538,20.56,146.31,146.21,6.0963]
[1723998947717,7.51943226,146.3,146.21,6.0963]
[1723998947917,7.51943226,146.29,146.21,7.46394535]
[1723998948138,7.51943226,146.28,146.21,7.46394535]
[1723998948346,6.8356,146.3,146.21,7.46394535]
[1723998948644,7.52055846,146.29,146.21,7.46394535]
[1723998948843,7.52055846,146.28,146.21,6.0963]
[1723998949135,45.0,146.27,146.21,6.0963]
[1723998949322,15.6449,146.31,146.21,6.0963]
[1723998949522,7.52011622,146.3,146.21,6.0963]
[1723998949732,7.52011622,146.29,146.21,6.0963]
[1723998949925,7.52011622,146.28,146.21,6.0963]
[1723998950244,17.35433746,146.31,146.21,6.0963]
[1723998950417,7.52028079,146.3,146.21,6.0963]
[1723998950616,17.35433746,146.31,146.21,6.0963]
[1723998950617,7.52028079,146.29,146.21,6.0963]
[1723998950823,7.52028079,146.28,146.21,6.0963]
[1723998951044,17.35433746,146.31,146.21,6.0963]
[1723998951222,7.52021293,146.3,146.21,6.0963]
[1723998951431,7.52021293,146.29,146.21,6.0963]
[1723998951636,7.52021293,146.28,146.21,6.0963]
[1723998951820,17.35433746,146.31,146.21,6.0963]
[1723998952020,52.52021293,146.3,146.21,6.0963]
[1723998952221,7.52021293,146.29,146.21,6.0963]
[1723998952421,7.52021293,146.28,146.21,6.0963]
[1723998952622,45.0,146.3,146.21,6.0963]
[1723998952837,7.51978299,146.29,146.24,8.81]
[1723998953037,15.9574,146.37,146.26,8.81]
[1723998953341,7.51782553,146.36,146.28,14.9063]
[1723998953532,7.51782553,146.35,146.29,21.36692031]
[1723998953738,8.81,146.39,146.29,21.36692031]
[1723998953739,36.2011,146.39,146.29,21.36692031]
[1723998953930,7.5162507,146.38,146.3,8.81]
[1723998954135,7.5162507,146.37,146.3,8.81]
[1723998954327,7.5162507,146.36,146.3,8.81]
[1723998954522,15.6411,146.39,146.3,8.81]
[1723998954726,7.51616101,146.38,146.32,8.81]
[1723998954945,6.8288,146.44,146.34,6.0963]
[1723998955121,16.32439259,146.43,146.34,6.0963]
[1723998955445,7.51439259,146.42,146.34,14.9063]
[1723998955661,24.7674,146.45,146.36,8.81]
[1723998955837,7.51378622,146.44,146.37,1.36615975]
[1723998956147,8.81,146.46,146.37,1.36615975]
[1723998956326,8.81,146.46,146.37,20.0]
[1723998956728,15.9574,146.49,146.38,8.81]
[1723998956922,8.81,146.49,146.4,23.9397]
[1723998957134,8.81,146.49,146.41,20.0]
[1723998958826,1.70721589,146.48,146.41,20.0]
[1723998959027,8.81,146.49,146.41,20.0]
[1723998959249,1.70723449,146.5,146.41,20.0]
[1723998959463,8.81,146.49,146.41,20.0]
[1723998959634,1.70717975,146.48,146.41,20.0]
[1723998960450,46.70717975,146.48,146.4,15.1297]
[1723998960859,46.70717975,146.48,146.41,20.0]
[1723998963345,15.6355,146.51,146.41,28.81]
[1723998963735,45.0,146.5,146.41,28.81]
[1723998968475,10.51696412,146.49,146.41,28.81]
[1723998968764,46.70718567,146.48,146.41,28.81]
[1723998970264,46.70718567,146.48,146.4,15.1297]
[1723998970478,8.81,146.47,146.4,15.1297]
[1723998970765,45.0,146.46,146.4,15.1297]
[1723998972065,15.6364,146.49,146.4,15.1297]
[1723998972255,45.0,146.48,146.4,23.9397]
[1723998974149,23.42202918,146.53,146.42,8.81]
[1723998974467,8.81,146.51,146.42,8.81]
[1723998974771,10.51693472,146.51,146.43,20.0]
[1723998975471,8.81,146.51,146.43,20.0]
[1723998975848,45.0,146.5,146.43,20.0]
[1723998977572,1.70695954,146.49,146.43,20.0]
[1723998977744,1.70695954,146.49,146.4,15.1297]
[1723998977745,1.70695954,146.49,146.41,20.0]
[1723998977951,1.70718002,146.48,146.41,28.81]
[1723998978368,1.70718054,146.49,146.42,6.6602]
[1723998978539,45.0,146.5,146.43,20.0]
[1723998979069,1.70696171,146.49,146.43,20.0]
[1723998979368,45.0,146.5,146.43,20.0]
[1723998980069,8.81,146.51,146.43,20.0]
[1723998981372,10.51687084,146.51,146.43,20.0]
[1723998984574,1.70687278,146.54,146.44,15.3098]
[1723998984887,6.8236,146.55,146.47,8.81]
[1723998985184,6.8232,146.56,146.47,8.81]
[1723998985362,1.706269,146.55,146.47,8.81]
[1723998985542,1.70627053,146.54,146.47,8.81]
[1723998986576,1.70626931,146.55,146.47,8.81]
[1723998986778,1.70626709,146.54,146.47,8.81]
[1723998987274,1.70626766,146.56,146.47,8.81]
[1723998987573,10.5164672,146.55,146.46,15.4702]
[1723998987771,1.70641985,146.54,146.47,20.0]
[1723998988148,1.70639165,146.54,146.48,8.81]
[1723998988356,1.70627184,146.56,146.49,15.3098]
[1723998988557,46.70627184,146.56,146.49,15.3098]
[1723998988979,0.8631117,146.58,146.5,8.81]
[1723998989181,0.8631117,146.58,146.51,6.6602]
[1723998989692,1.70609202,146.57,146.51,6.6602]
[1723998989862,7.6853117,146.58,146.51,6.6602]
[1723998990050,8.81,146.57,146.51,6.6602]
[1723998990380,0.8631117,146.58,146.51,6.6602]
[1723998990676,45.8631117,146.58,146.51,6.6602]
[1723998991675,52.6854117,146.58,146.51,6.6602]
[1723998991887,8.81,146.57,146.51,6.6602]
[1723998992187,8.81,146.55,146.51,6.6602]
[1723998993085,1.70639822,146.54,146.51,6.6602]
[1723998993749,53.81,146.56,146.51,6.6602]
[1723998994463,1.70620133,146.55,146.51,6.6602]
[1723998994663,53.81,146.56,146.51,6.6602]
[1723998994863,9.6731117,146.58,146.51,6.6602]
[1723998996069,9.6731117,146.58,146.52,16.6027]
[1723998996070,0.8631117,146.58,146.52,16.6027]
[1723998998484,0.8631117,146.58,146.52,17.96731467]
[1723998998781,0.8631117,146.58,146.53,20.0]
[1723998998982,0.8631117,146.58,146.54,1.36458834]
[1723998999155,10.0,146.66,146.55,15.644]
[1723998999356,7.50486565,146.65,146.58,8.81]
[1723998999556,10.0,146.66,146.61,6.2389]
[1723999001575,8.81,146.64,146.57,21.8829]
[1723999001963,8.81,146.64,146.57,23.24730351]
[1723999002190,18.81,146.66,146.57,21.8829]
[1723999002961,51.819,146.65,146.57,21.8829]
[1723999003187,45.0,146.65,146.57,21.8829]
[1723999003693,18.81,146.66,146.58,8.81]
[1723999006191,20.51506565,146.66,146.58,8.81]
[1723999006582,18.81,146.66,146.58,8.81]
[1723999007778,1.70506644,146.65,146.58,8.81]
[1723999007981,1.70506644,146.65,146.57,21.8829]
[1723999008903,18.81,146.66,146.57,21.8829]
[1723999009809,8.81,146.64,146.57,21.8829]
[1723999010190,25.6286,146.66,146.57,30.6929]
[1723999011905,18.81,146.66,146.57,30.6929]
[1723999014303,10.0,146.66,146.59,31.6516]
[1723999014518,10.0,146.66,146.61,8.81]
[1723999014690,10.0,146.66,146.62,26.2389]
[1723999014893,0.308693,146.69,146.63,22.38378607]
[1723999015083,0.308693,146.69,146.65,8.81]
[1723999015398,0.308693,146.69,146.67,6.2389]
[1723999015591,0.308693,146.69,146.68,1.36311532]
[1723999015795,0.308693,146.69,146.67,15.0489]
[1723999016196,0.8631117,146.72,146.69,4.7847]
[1723999018104,0.8631117,146.72,146.67,6.2389]
[1723999018712,52.6789117,146.72,146.67,6.2389]
[1723999018904,30.0,146.68,146.67,6.2389]
[1723999021205,30.0,146.68,146.62,6.6187]
[1723999021414,6.8184,146.66,146.62,6.6187]
[1723999021710,30.0,146.64,146.62,6.6187]
[1723999023290,13.3334,146.64,146.63,4.4762]
[1723999023491,0.8631117,146.72,146.63,92.72976549]
[1723999023710,0.8631117,146.72,146.64,45.0]
[1723999023912,0.8631117,146.72,146.65,21.36334334]